[Event "*** Titled Tuesday 3|2 Blitz"]
[Site "Chess.com"]
[Date "2016.10.04"]
[Round "1"]
[White "maciek_92"]
[Black "Houdinovic"]
[Result "1-0"]
[WhiteElo "2597"]
[BlackElo "2312"]
[TimeControl "180+2"]
[EndTime "11:09:01 PDT"]
[Termination "maciek_92 won by resignation"]

1. c4 {[%clk 0:03:00.9]} 1... e5 {[%clk 0:02:54.7]} 2. Nc3 {[%clk 0:03:01.1]}
2... Nf6 {[%clk 0:02:54.9]} 3. g3 {[%clk 0:03:01.2]} 3... Bb4 {[%clk 0:02:49.2]}
4. Bg2 {[%clk 0:02:59.2]} 4... O-O {[%clk 0:02:48.2]} 5. Nf3 {[%clk 0:02:55.8]}
5... d6 {[%clk 0:02:43.7]} 6. O-O {[%clk 0:02:56.1]} 6... Nc6 {[%clk 0:02:39.8]}
7. d3 {[%clk 0:02:55.8]} 7... Bxc3 {[%clk 0:02:38.3]} 8. bxc3 {[%clk 0:02:57.7]}
8... h6 {[%clk 0:02:39.2]} 9. e4 {[%clk 0:02:57.6]} 9... Nh7 {[%clk 0:02:35.3]}
10. Nh4 {[%clk 0:02:57.9]} 10... Ng5 {[%clk 0:02:28.3]} 11. Qh5 {[%clk
0:02:51.9]} 11... Qf6 {[%clk 0:01:59.1]} 12. f4 {[%clk 0:02:48.8]} 12... Nh3+
{[%clk 0:01:48.5]} 13. Kh1 {[%clk 0:02:44.4]} 13... exf4 {[%clk 0:01:49.4]} 14.
d4 {[%clk 0:02:38.5]} 14... Qg5 {[%clk 0:01:32]} 15. Qe2 {[%clk 0:01:56.8]}
15... Bg4 {[%clk 0:01:27.9]} 16. Qd3 {[%clk 0:01:56.7]} 16... Qh5 {[%clk
0:01:19.6]} 17. Nf5 {[%clk 0:01:50.7]} 17... g6 {[%clk 0:00:48.8]} 18. Nh4
{[%clk 0:01:09.7]} 18... Be2 {[%clk 0:00:49.7]} 19. Qc2 {[%clk 0:01:01.8]} 19...
Bxf1 {[%clk 0:00:49.5]} 20. Bxf1 {[%clk 0:01:03.4]} 20... fxg3 {[%clk 0:00:49]}
21. hxg3 {[%clk 0:01:02.1]} 21... Qg4 {[%clk 0:00:39.7]} 22. Kh2 {[%clk
0:00:42.4]} 22... Ng5 {[%clk 0:00:40.9]} 23. Bg2 {[%clk 0:00:43.8]} 23... Rae8
{[%clk 0:00:40.8]} 24. Bf4 {[%clk 0:00:44.1]} 24... Kg7 {[%clk 0:00:40.1]} 25.
Rf1 {[%clk 0:00:43.9]} 25... f5 {[%clk 0:00:35.9]} 26. Bxg5 {[%clk 0:00:27]}
26... Qxg5 {[%clk 0:00:28.1]} 27. exf5 {[%clk 0:00:27.8]} 27... Re3 {[%clk
0:00:27.1]} 28. Qf2 {[%clk 0:00:26.1]} 28... Ne7 {[%clk 0:00:22.8]} 29. g4
{[%clk 0:00:22.9]} 29... Qxg4 {[%clk 0:00:21.6]} 30. Qxe3 {[%clk 0:00:23.4]}
30... Qxh4+ {[%clk 0:00:23.1]} 31. Kg1 {[%clk 0:00:24.5]} 31... Nxf5 {[%clk
0:00:24.5]} 32. Qf3 {[%clk 0:00:24.1]} 32... Qg5 {[%clk 0:00:25.8]} 33. Re1
{[%clk 0:00:23.5]} 33... Rf7 {[%clk 0:00:25.5]} 34. Rf1 {[%clk 0:00:16.7]} 34...
Qe3+ {[%clk 0:00:25.3]} 35. Qxe3 {[%clk 0:00:17.8]} 35... Nxe3 {[%clk
0:00:27.2]} 36. Re1 {[%clk 0:00:18.6]} 36... Nxg2 {[%clk 0:00:26.8]} 37. Kxg2
{[%clk 0:00:20]} 37... Kf6 {[%clk 0:00:28.7]} 38. Rf1+ {[%clk 0:00:21.3]} 38...
Ke7 {[%clk 0:00:30.2]} 39. Re1+ {[%clk 0:00:22.7]} 39... Kd7 {[%clk 0:00:31.7]}
40. Rh1 {[%clk 0:00:24.5]} 40... h5 {[%clk 0:00:32.9]} 41. Kg3 {[%clk
0:00:26.2]} 41... Rf5 {[%clk 0:00:34.1]} 42. Rb1 {[%clk 0:00:27.2]} 42... b6
{[%clk 0:00:33.3]} 43. d5 {[%clk 0:00:26.4]} 43... Re5 {[%clk 0:00:34.1]} 44.
Kf3 {[%clk 0:00:26.8]} 44... g5 {[%clk 0:00:35.2]} 45. Rh1 {[%clk 0:00:28]}
45... g4+ {[%clk 0:00:36.4]} 46. Kf2 {[%clk 0:00:29.2]} 46... c6 {[%clk
0:00:37.2]} 47. Rd1 {[%clk 0:00:29.1]} 47... cxd5 {[%clk 0:00:38.5]} 48. cxd5
{[%clk 0:00:31]} 48... Kc7 {[%clk 0:00:39.8]} 49. Rd4 {[%clk 0:00:32.5]} 49...
b5 {[%clk 0:00:40.8]} 50. a4 {[%clk 0:00:33.9]} 50... Kb6 {[%clk 0:00:39.7]} 51.
axb5 {[%clk 0:00:34.6]} 51... Kxb5 {[%clk 0:00:41.6]} 52. Rf4 {[%clk 0:00:32.2]}
52... Rxd5 {[%clk 0:00:42]} 53. c4+ {[%clk 0:00:33.3]} 1-0

[Event "*** Titled Tuesday 3|2 Blitz"]
[Site "Chess.com"]
[Date "2016.10.04"]
[Round "1"]
[White "hypert"]
[Black "Blitzstream"]
[Result "0-1"]
[WhiteElo "2290"]
[BlackElo "2556"]
[TimeControl "180+2"]
[EndTime "11:09:02 PDT"]
[Termination "Blitzstream won by resignation"]

1. e4 {[%clk 0:03:02]} 1... d5 {[%clk 0:03:00.5]} 2. exd5 {[%clk 0:03:02.2]}
2... Qxd5 {[%clk 0:03:02.4]} 3. Nc3 {[%clk 0:03:03.1]} 3... Qa5 {[%clk
0:03:03.2]} 4. Nf3 {[%clk 0:03:04.1]} 4... Nf6 {[%clk 0:03:04.4]} 5. Be2 {[%clk
0:03:05.2]} 5... Nc6 {[%clk 0:03:04.9]} 6. O-O {[%clk 0:03:06.7]} 6... Bg4
{[%clk 0:03:05.9]} 7. Rb1 {[%clk 0:03:04.6]} 7... e6 {[%clk 0:03:06.4]} 8. a3
{[%clk 0:03:05.3]} 8... Bd6 {[%clk 0:03:06.2]} 9. h3 {[%clk 0:03:05.1]} 9... h5
{[%clk 0:03:06.2]} 10. b4 {[%clk 0:03:04.7]} 10... Qf5 {[%clk 0:03:07]} 11. b5
{[%clk 0:03:02.3]} 11... Ne5 {[%clk 0:03:01.7]} 12. d4 {[%clk 0:02:09.3]} 12...
Nxf3+ {[%clk 0:02:58.7]} 13. Bxf3 {[%clk 0:02:10.1]} 13... Bxf3 {[%clk
0:02:50.2]} 14. Qxf3 {[%clk 0:02:10.4]} 14... Qxf3 {[%clk 0:02:50.6]} 15. gxf3
{[%clk 0:02:10.5]} 15... O-O-O {[%clk 0:02:37.2]} 16. Ne4 {[%clk 0:02:06.4]}
16... Be7 {[%clk 0:02:37.4]} 17. Be3 {[%clk 0:01:59.7]} 17... Nd5 {[%clk
0:02:36.5]} 18. c4 {[%clk 0:01:56.5]} 18... Nf6 {[%clk 0:02:30.3]} 19. a4 {[%clk
0:01:55]} 19... Nxe4 {[%clk 0:01:15.9]} 20. fxe4 {[%clk 0:01:56.9]} 20... Bf6
{[%clk 0:01:12.1]} 21. d5 {[%clk 0:01:53.9]} 21... exd5 {[%clk 0:01:10.2]} 22.
exd5 {[%clk 0:01:54.9]} 22... b6 {[%clk 0:01:06.6]} 23. Rfd1 {[%clk 0:01:50.1]}
23... Rhe8 {[%clk 0:01:00.4]} 24. a5 {[%clk 0:01:49.5]} 24... Re4 {[%clk
0:00:54]} 25. axb6 {[%clk 0:01:46.4]} 25... axb6 {[%clk 0:00:53.1]} 26. Rbc1
{[%clk 0:01:46.8]} 26... Be7 {[%clk 0:00:50.8]} 27. Kg2 {[%clk 0:01:39.1]} 27...
Bd6 {[%clk 0:00:49.2]} 28. Kf3 {[%clk 0:01:39.3]} 28... f5 {[%clk 0:00:48.9]}
29. Rd4 {[%clk 0:01:37.4]} 29... Rde8 {[%clk 0:00:49.6]} 30. Rcd1 {[%clk
0:01:26.2]} 30... Kd7 {[%clk 0:00:39.6]} 31. Rxe4 {[%clk 0:01:26.8]} 31... fxe4+
{[%clk 0:00:40.7]} 32. Ke2 {[%clk 0:01:25.3]} 32... Rf8 {[%clk 0:00:35.6]} 33.
Rg1 {[%clk 0:01:24.3]} 33... Be5 {[%clk 0:00:34.3]} 34. Rg5 {[%clk 0:01:25.1]}
34... Kd6 {[%clk 0:00:34.9]} 35. Rxh5 {[%clk 0:01:21.3]} 35... Ra8 {[%clk
0:00:36.4]} 36. f4 {[%clk 0:01:07.9]} 36... Ra2+ {[%clk 0:00:25.4]} 37. Kf1
{[%clk 0:01:07.6]} 37... Bf6 {[%clk 0:00:25.9]} 38. Rh8 {[%clk 0:01:05.2]} 38...
Rc2 {[%clk 0:00:25.5]} 39. c5+ {[%clk 0:01:02.7]} 39... bxc5 {[%clk 0:00:25.8]}
40. Rb8 {[%clk 0:01:01.6]} 40... Kxd5 {[%clk 0:00:26]} 41. b6 {[%clk 0:01:02.6]}
41... cxb6 {[%clk 0:00:26.8]} 42. Rxb6 {[%clk 0:01:03.5]} 42... Bd4 {[%clk
0:00:27.9]} 43. Rb3 {[%clk 0:00:49.3]} 43... Rh2 {[%clk 0:00:21.1]} 44. Bxd4
{[%clk 0:00:39.9]} 44... cxd4 {[%clk 0:00:23]} 45. Rg3 {[%clk 0:00:40.3]} 45...
e3 {[%clk 0:00:23.5]} 46. Rxg7 {[%clk 0:00:40]} 46... Ke4 {[%clk 0:00:24.8]} 47.
Rg3 {[%clk 0:00:36.5]} 47... d3 {[%clk 0:00:26]} 48. Rg8 {[%clk 0:00:32.6]}
48... Kf3 {[%clk 0:00:26.5]} 0-1

[Event "*** Titled Tuesday 3|2 Blitz"]
[Site "Chess.com"]
[Date "2016.10.04"]
[Round "1"]
[White "dawtonlms"]
[Black "Ar4uha"]
[Result "0-1"]
[WhiteElo "2160"]
[BlackElo "2463"]
[TimeControl "180+2"]
[EndTime "11:09:18 PDT"]
[Termination "Ar4uha won by checkmate"]

1. e4 {[%clk 0:02:56.3]} 1... d6 {[%clk 0:02:59.9]} 2. d4 {[%clk 0:02:56.1]}
2... Nf6 {[%clk 0:03:00.1]} 3. Nc3 {[%clk 0:02:57.6]} 3... e5 {[%clk 0:03:01.7]}
4. dxe5 {[%clk 0:02:57.2]} 4... dxe5 {[%clk 0:03:03.6]} 5. Qxd8+ {[%clk
0:02:58.7]} 5... Kxd8 {[%clk 0:03:05.5]} 6. Bc4 {[%clk 0:03:00]} 6... Be6 {[%clk
0:03:05.7]} 7. Bxe6 {[%clk 0:03:00.4]} 7... fxe6 {[%clk 0:03:07.6]} 8. f3 {[%clk
0:03:01.8]} 8... a6 {[%clk 0:02:53.5]} 9. Be3 {[%clk 0:03:02.1]} 9... Bd6 {[%clk
0:02:51.6]} 10. a4 {[%clk 0:03:01.2]} 10... Ke7 {[%clk 0:02:52.2]} 11. Nh3
{[%clk 0:03:00.3]} 11... Nc6 {[%clk 0:02:52.4]} 12. Nf2 {[%clk 0:03:01]} 12...
Nd4 {[%clk 0:02:49]} 13. O-O-O {[%clk 0:02:57.3]} 13... c5 {[%clk 0:02:49.9]}
14. Nd3 {[%clk 0:02:42.4]} 14... b5 {[%clk 0:02:42.6]} 15. axb5 {[%clk
0:02:30.7]} 15... axb5 {[%clk 0:02:43.8]} 16. Bxd4 {[%clk 0:02:29.6]} 16... exd4
{[%clk 0:02:23.6]} 17. Nxb5 {[%clk 0:02:29.2]} 17... e5 {[%clk 0:02:23.6]} 18.
Nxd6 {[%clk 0:02:27.2]} 18... Kxd6 {[%clk 0:02:25.5]} 19. b3 {[%clk 0:02:28.4]}
19... Ra2 {[%clk 0:02:16.4]} 20. Nb2 {[%clk 0:02:27.7]} 20... Rb8 {[%clk
0:02:06.7]} 21. Kb1 {[%clk 0:01:59.6]} 21... Ra6 {[%clk 0:02:00.1]} 22. Nc4+
{[%clk 0:01:59.9]} 22... Ke6 {[%clk 0:02:01.3]} 23. Kb2 {[%clk 0:02:01]} 23...
Ra4 {[%clk 0:01:49.2]} 24. Kc1 {[%clk 0:01:45.5]} 24... Ra2 {[%clk 0:01:45.8]}
25. Kb1 {[%clk 0:01:45.4]} 25... Ra4 {[%clk 0:01:44.9]} 26. Nb2 {[%clk
0:01:45.2]} 26... Ra6 {[%clk 0:01:36.8]} 27. Nd3 {[%clk 0:01:41.9]} 27... Nd7
{[%clk 0:01:34.7]} 28. Nb2 {[%clk 0:01:40.2]} 28... Nb6 {[%clk 0:01:26.6]} 29.
Kc1 {[%clk 0:01:37.1]} 29... c4 {[%clk 0:01:27.5]} 30. bxc4 {[%clk 0:01:33.8]}
30... Ra2 {[%clk 0:01:23.5]} 31. c5 {[%clk 0:01:30.1]} 31... Nd7 {[%clk
0:00:50.9]} 32. Nd3 {[%clk 0:01:30.5]} 32... Rc8 {[%clk 0:00:51]} 33. c6 {[%clk
0:01:17.3]} 33... Nb8 {[%clk 0:00:36.8]} 34. Nb4 {[%clk 0:01:05.7]} 34... Ra4
{[%clk 0:00:37.7]} 35. c7 {[%clk 0:00:46.9]} 35... Rxb4 {[%clk 0:00:32]} 36.
cxb8=Q {[%clk 0:00:47.3]} 36... Rbxb8 {[%clk 0:00:33.9]} 37. Kd2 {[%clk
0:00:48.4]} 37... Rb2 {[%clk 0:00:35.1]} 38. Rc1 {[%clk 0:00:49.6]} 38... Rc3
{[%clk 0:00:36.6]} 39. Rhe1 {[%clk 0:00:31]} 39... Kd6 {[%clk 0:00:36.3]} 40.
Re2 {[%clk 0:00:27.7]} 40... Kc5 {[%clk 0:00:37.3]} 41. Kd1 {[%clk 0:00:27.3]}
41... Ra3 {[%clk 0:00:31.6]} 42. Rd2 {[%clk 0:00:27.5]} 42... Kc4 {[%clk
0:00:31.9]} 43. Ke2 {[%clk 0:00:28.1]} 43... Re3+ {[%clk 0:00:32.9]} 44. Kf2
{[%clk 0:00:28.9]} 44... Kc3 {[%clk 0:00:32.9]} 45. Rdd1 {[%clk 0:00:05.3]}
45... Rxc2+ {[%clk 0:00:34.3]} 46. Rxc2+ {[%clk 0:00:06.9]} 46... Kxc2 {[%clk
0:00:36.2]} 47. Ra1 {[%clk 0:00:08.4]} 47... Rb3 {[%clk 0:00:37.7]} 48. Ra2+
{[%clk 0:00:09]} 48... Rb2 {[%clk 0:00:38.2]} 49. Ra5 {[%clk 0:00:09.5]} 49...
d3 {[%clk 0:00:35.8]} 50. Rd5 {[%clk 0:00:09.1]} 50... Kc3+ {[%clk 0:00:32.6]}
51. Ke3 {[%clk 0:00:10.1]} 51... Re2# {[%clk 0:00:33.5]} 0-1

[Event "*** Titled Tuesday 3|2 Blitz"]
[Site "Chess.com"]
[Date "2016.10.04"]
[Round "1"]
[White "mwpchess"]
[Black "chessbia"]
[Result "1-0"]
[WhiteElo "2445"]
[BlackElo "2016"]
[TimeControl "180+2"]
[EndTime "11:09:29 PDT"]
[Termination "mwpchess won by resignation"]

1. e4 {[%clk 0:03:01.7]} 1... e5 {[%clk 0:02:46.6]} 2. Nf3 {[%clk 0:03:01.9]}
2... Nc6 {[%clk 0:02:47.1]} 3. Bb5 {[%clk 0:03:00.8]} 3... a6 {[%clk 0:02:47.7]}
4. Ba4 {[%clk 0:03:01.5]} 4... Nf6 {[%clk 0:02:48.6]} 5. O-O {[%clk 0:03:01.2]}
5... Be7 {[%clk 0:02:48.7]} 6. Re1 {[%clk 0:02:59.9]} 6... b5 {[%clk 0:02:49.8]}
7. Bb3 {[%clk 0:03:00.1]} 7... O-O {[%clk 0:02:51.7]} 8. h3 {[%clk 0:02:53.2]}
8... Bb7 {[%clk 0:02:50.8]} 9. d3 {[%clk 0:02:52.1]} 9... h6 {[%clk 0:02:48.7]}
10. Nc3 {[%clk 0:02:49.1]} 10... Re8 {[%clk 0:02:44.4]} 11. a3 {[%clk
0:02:40.8]} 11... d6 {[%clk 0:02:43]} 12. Nd5 {[%clk 0:02:39.5]} 12... Nxd5
{[%clk 0:02:42.8]} 13. Bxd5 {[%clk 0:02:38.2]} 13... Bf6 {[%clk 0:02:42.7]} 14.
Bd2 {[%clk 0:02:31.6]} 14... Qc8 {[%clk 0:02:42.5]} 15. a4 {[%clk 0:02:29.9]}
15... Ne7 {[%clk 0:02:41.5]} 16. Bb3 {[%clk 0:02:29.1]} 16... c5 {[%clk
0:02:41.3]} 17. c3 {[%clk 0:02:25.3]} 17... Qc7 {[%clk 0:02:36.2]} 18. Qe2
{[%clk 0:02:21.7]} 18... Ng6 {[%clk 0:02:32.7]} 19. Nh2 {[%clk 0:02:14.1]} 19...
Qc6 {[%clk 0:02:29.8]} 20. Ng4 {[%clk 0:02:10.8]} 20... Be7 {[%clk 0:02:26.3]}
21. Qf3 {[%clk 0:02:05.5]} 21... Rf8 {[%clk 0:02:22.4]} 22. Ne3 {[%clk
0:02:03.3]} 22... Qc7 {[%clk 0:02:13.9]} 23. Nf5 {[%clk 0:02:01.1]} 23... Kh7
{[%clk 0:02:09]} 24. Bxh6 {[%clk 0:01:32.2]} 24... gxh6 {[%clk 0:02:08.6]} 25.
Qh5 {[%clk 0:01:33]} 25... Bg5 {[%clk 0:02:07.3]} 26. h4 {[%clk 0:01:32.9]}
26... Nf4 {[%clk 0:02:08.2]} 27. Qf3 {[%clk 0:01:25.9]} 27... Bf6 {[%clk
0:02:05.3]} 28. g3 {[%clk 0:01:26.3]} 28... Ng6 {[%clk 0:02:05.4]} 29. Nxh6
{[%clk 0:01:23.7]} 29... Kxh6 {[%clk 0:02:03.5]} 30. Qxf6 {[%clk 0:01:24.7]}
30... c4 {[%clk 0:02:02.2]} 31. Bd1 {[%clk 0:01:11.1]} 31... Qe7 {[%clk
0:01:58.1]} 32. Qf5 {[%clk 0:01:09.7]} 32... Bc8 {[%clk 0:01:51.6]} 33. Qf3
{[%clk 0:01:09]} 33... cxd3 {[%clk 0:01:50.6]} 34. Qxd3 {[%clk 0:01:09.8]} 34...
Be6 {[%clk 0:01:51.1]} 35. Bf3 {[%clk 0:01:04.2]} 35... Bc4 {[%clk 0:01:50.6]}
36. Qe3+ {[%clk 0:01:04.1]} 36... Kg7 {[%clk 0:01:50.8]} 37. Kg2 {[%clk
0:01:04.4]} 37... Rad8 {[%clk 0:01:38.3]} 38. h5 {[%clk 0:01:04.6]} 38... Nh8
{[%clk 0:01:36.9]} 39. h6+ {[%clk 0:01:00.3]} 39... Kh7 {[%clk 0:01:37.8]} 40.
Rh1 {[%clk 0:01:00.4]} 40... Ng6 {[%clk 0:01:37.5]} 41. axb5 {[%clk 0:00:58]}
41... axb5 {[%clk 0:01:38.2]} 42. Ra7 {[%clk 0:00:58.1]} 42... Qf6 {[%clk
0:01:39.3]} 43. Rh5 {[%clk 0:00:52.9]} 43... Be6 {[%clk 0:01:37.2]} 44. Be2
{[%clk 0:00:53.3]} 44... b4 {[%clk 0:01:36]} 45. cxb4 {[%clk 0:00:53.6]} 45...
Rb8 {[%clk 0:01:35.5]} 46. b5 {[%clk 0:00:54.8]} 46... d5 {[%clk 0:01:33.8]} 47.
exd5 {[%clk 0:00:52.1]} 47... Bxd5+ {[%clk 0:01:35.7]} 48. Kh2 {[%clk
0:00:52.5]} 48... Rbc8 {[%clk 0:01:31.8]} 49. Bd3 {[%clk 0:00:51.4]} 49... Kh8
{[%clk 0:01:28.1]} 50. Rf5 {[%clk 0:00:41.8]} 50... Qe6 {[%clk 0:01:20.1]} 51.
Qg5 {[%clk 0:00:39.5]} 51... e4 {[%clk 0:01:18.4]} 52. Bb1 {[%clk 0:00:25.8]}
52... Ba8 {[%clk 0:01:14.3]} 53. Ba2 {[%clk 0:00:24.9]} 53... Qb6 {[%clk
0:01:05.5]} 54. Raxf7 {[%clk 0:00:25.2]} 54... Rxf7 {[%clk 0:01:05.5]} 55. Bxf7
{[%clk 0:00:25.7]} 55... Rg8 {[%clk 0:00:41.8]} 56. Bxg8 {[%clk 0:00:24.4]}
56... Kxg8 {[%clk 0:00:43]} 57. Rf6 {[%clk 0:00:25.6]} 1-0

[Event "*** Titled Tuesday 3|2 Blitz"]
[Site "Chess.com"]
[Date "2016.10.04"]
[Round "1"]
[White "GianmarcoVaR"]
[Black "GeorgMeier"]
[Result "0-1"]
[WhiteElo "2383"]
[BlackElo "2723"]
[TimeControl "180+2"]
[EndTime "11:09:35 PDT"]
[Termination "GeorgMeier won by resignation"]

1. d4 {[%clk 0:03:01.9]} 1... e6 {[%clk 0:03:02]} 2. Nf3 {[%clk 0:03:03.3]} 2...
d5 {[%clk 0:03:03.3]} 3. Bf4 {[%clk 0:03:03.9]} 3... Nf6 {[%clk 0:03:05.2]} 4.
e3 {[%clk 0:03:05.3]} 4... Be7 {[%clk 0:03:04]} 5. h3 {[%clk 0:03:03.6]} 5...
O-O {[%clk 0:03:04.8]} 6. c3 {[%clk 0:03:05.1]} 6... b6 {[%clk 0:03:06.4]} 7.
Nbd2 {[%clk 0:03:06.3]} 7... c5 {[%clk 0:03:07.2]} 8. Bd3 {[%clk 0:03:04.5]}
8... Ba6 {[%clk 0:03:08.4]} 9. Bxa6 {[%clk 0:03:02.3]} 9... Nxa6 {[%clk
0:03:10.3]} 10. Qe2 {[%clk 0:03:01.9]} 10... Qc8 {[%clk 0:03:11.8]} 11. O-O
{[%clk 0:03:02.6]} 11... Qb7 {[%clk 0:03:12.9]} 12. a4 {[%clk 0:03:03.5]} 12...
Rfd8 {[%clk 0:03:13.7]} 13. Ne5 {[%clk 0:03:04.6]} 13... Rac8 {[%clk 0:03:10.7]}
14. Rfd1 {[%clk 0:03:04.3]} 14... Nc7 {[%clk 0:03:10.6]} 15. Nd3 {[%clk
0:03:02]} 15... a5 {[%clk 0:03:03.9]} 16. Ne5 {[%clk 0:03:02.2]} 16... Nce8
{[%clk 0:03:04.8]} 17. Nef3 {[%clk 0:03:01]} 17... Nd6 {[%clk 0:03:05.6]} 18.
Bxd6 {[%clk 0:03:02]} 18... Bxd6 {[%clk 0:03:06.7]} 19. Qb5 {[%clk 0:03:03.1]}
19... g6 {[%clk 0:03:04.6]} 20. Nb3 {[%clk 0:03:03.6]} 20... Qc7 {[%clk
0:02:59.8]} 21. dxc5 {[%clk 0:02:53.5]} 21... Bxc5 {[%clk 0:02:56.7]} 22. Nbd4
{[%clk 0:02:40.9]} 22... Ne4 {[%clk 0:02:57.1]} 23. Qe2 {[%clk 0:02:38.4]} 23...
Nd6 {[%clk 0:02:52.6]} 24. Nb5 {[%clk 0:02:39.6]} 24... Nxb5 {[%clk 0:02:52.5]}
25. Qxb5 {[%clk 0:02:41.5]} 25... Qd7 {[%clk 0:02:49]} 26. Qb3 {[%clk
0:02:09.1]} 26... Qc7 {[%clk 0:02:38.2]} 27. Qb5 {[%clk 0:02:09.3]} 27... Qc6
{[%clk 0:02:38.8]} 28. Qxc6 {[%clk 0:01:14.1]} 28... Rxc6 {[%clk 0:02:39.8]} 29.
Kf1 {[%clk 0:01:13.9]} 29... Rb8 {[%clk 0:02:39.2]} 30. Ne5 {[%clk 0:01:05.5]}
30... Rc7 {[%clk 0:02:37]} 31. Nd3 {[%clk 0:01:00.9]} 31... Bd6 {[%clk
0:02:35.7]} 32. Ke2 {[%clk 0:01:01.1]} 32... Kg7 {[%clk 0:02:36.6]} 33. Kd2
{[%clk 0:00:56.7]} 33... h5 {[%clk 0:02:32.7]} 34. Ne1 {[%clk 0:00:57.2]} 34...
f6 {[%clk 0:02:22.8]} 35. Nc2 {[%clk 0:00:55.5]} 35... Bc5 {[%clk 0:02:19.2]}
36. Na3 {[%clk 0:00:42.3]} 36... Bxa3 {[%clk 0:02:18.3]} 37. Rxa3 {[%clk
0:00:44.2]} 37... Kf7 {[%clk 0:02:15.6]} 38. Rb3 {[%clk 0:00:44.4]} 38... Rc4
{[%clk 0:02:14]} 39. Ra1 {[%clk 0:00:45.1]} 39... Rc5 {[%clk 0:02:15.2]} 40. Kd3
{[%clk 0:00:45.6]} 40... e5 {[%clk 0:02:15.8]} 41. Rd1 {[%clk 0:00:37.9]} 41...
Ke6 {[%clk 0:02:16.8]} 42. Ke2 {[%clk 0:00:37.1]} 42... h4 {[%clk 0:02:12.7]}
43. Re1 {[%clk 0:00:35.8]} 43... g5 {[%clk 0:02:12]} 44. Rd1 {[%clk 0:00:37]}
44... f5 {[%clk 0:02:12.3]} 45. f3 {[%clk 0:00:35.4]} 45... Rb7 {[%clk
0:02:08.9]} 46. Rd2 {[%clk 0:00:36]} 46... b5 {[%clk 0:01:43.2]} 47. axb5 {[%clk
0:00:35.5]} 47... Rcxb5 {[%clk 0:01:45.1]} 48. Rxb5 {[%clk 0:00:36.1]} 48...
Rxb5 {[%clk 0:01:47]} 49. Kd1 {[%clk 0:00:34.8]} 49... Rb8 {[%clk 0:01:44]} 50.
Kc2 {[%clk 0:00:35.3]} 50... a4 {[%clk 0:01:45.2]} 51. Rd1 {[%clk 0:00:35.9]}
51... f4 {[%clk 0:01:46.7]} 52. e4 {[%clk 0:00:15.3]} 52... dxe4 {[%clk
0:01:47.8]} 53. fxe4 {[%clk 0:00:17.2]} 53... g4 {[%clk 0:01:49.7]} 54. hxg4
{[%clk 0:00:11.7]} 54... Rg8 {[%clk 0:01:50.5]} 55. Rh1 {[%clk 0:00:12.5]} 55...
Rxg4 {[%clk 0:01:51.5]} 56. Kb1 {[%clk 0:00:13.9]} 56... Kd6 {[%clk 0:01:48.8]}
57. Ka2 {[%clk 0:00:13.7]} 57... Rxg2 {[%clk 0:01:44]} 58. Rxh4 {[%clk
0:00:14.8]} 58... Re2 {[%clk 0:01:45.3]} 59. Rh6+ {[%clk 0:00:15.7]} 59... Kc5
{[%clk 0:01:46.2]} 60. Kb1 {[%clk 0:00:08.4]} 60... Rxe4 {[%clk 0:01:46.4]} 61.
Kc2 {[%clk 0:00:09.9]} 61... f3 {[%clk 0:01:38.4]} 62. Kd3 {[%clk 0:00:09.5]}
62... Re2 {[%clk 0:01:33.4]} 63. Rh5 {[%clk 0:00:10.8]} 63... Kd6 {[%clk
0:01:32.4]} 64. Rf5 {[%clk 0:00:11.6]} 64... e4+ {[%clk 0:01:33.3]} 65. Kd4
{[%clk 0:00:11.6]} 65... f2 {[%clk 0:01:32.9]} 66. c4 {[%clk 0:00:10.2]} 66...
e3 {[%clk 0:01:34.1]} 67. Rf6+ {[%clk 0:00:10.6]} 67... Ke7 {[%clk 0:01:35.3]}
68. Rf4 {[%clk 0:00:11.2]} 68... Re1 {[%clk 0:01:36.3]} 0-1

[Event "*** Titled Tuesday 3|2 Blitz"]
[Site "Chess.com"]
[Date "2016.10.04"]
[Round "1"]
[White "stuffings101"]
[Black "Tash_Boy"]
[Result "0-1"]
[WhiteElo "2136"]
[BlackElo "2455"]
[TimeControl "180+2"]
[EndTime "11:09:46 PDT"]
[Termination "Tash_Boy won by resignation"]

1. Nf3 {[%clk 0:02:55.2]} 1... Nf6 {[%clk 0:02:57.7]} 2. g3 {[%clk 0:02:56.5]}
2... g6 {[%clk 0:02:59.3]} 3. Bg2 {[%clk 0:02:57.8]} 3... Bg7 {[%clk 0:02:59.3]}
4. O-O {[%clk 0:02:59.7]} 4... O-O {[%clk 0:03:01.2]} 5. d3 {[%clk 0:03:01.6]}
5... d6 {[%clk 0:03:02.5]} 6. c3 {[%clk 0:03:02.4]} 6... e5 {[%clk 0:03:03.7]}
7. a4 {[%clk 0:03:00.9]} 7... Re8 {[%clk 0:03:01.8]} 8. e4 {[%clk 0:03:00.5]}
8... c6 {[%clk 0:03:02.6]} 9. a5 {[%clk 0:03:00.5]} 9... d5 {[%clk 0:02:59.7]}
10. Qe2 {[%clk 0:02:59]} 10... Nbd7 {[%clk 0:02:57.1]} 11. Re1 {[%clk
0:02:57.3]} 11... Qc7 {[%clk 0:02:56.9]} 12. Bg5 {[%clk 0:02:56.5]} 12... dxe4
{[%clk 0:02:50.7]} 13. dxe4 {[%clk 0:02:55.7]} 13... Rb8 {[%clk 0:02:49.9]} 14.
Nbd2 {[%clk 0:02:54.4]} 14... b5 {[%clk 0:02:47.2]} 15. axb6 {[%clk 0:02:52.7]}
15... axb6 {[%clk 0:02:47.6]} 16. Red1 {[%clk 0:02:39.9]} 16... h6 {[%clk
0:02:35.4]} 17. Bxf6 {[%clk 0:02:37.6]} 17... Bxf6 {[%clk 0:02:36]} 18. Nc4
{[%clk 0:02:37.8]} 18... Re6 {[%clk 0:02:26.5]} 19. Qe3 {[%clk 0:02:32.5]} 19...
Kg7 {[%clk 0:02:25.8]} 20. h4 {[%clk 0:02:32.1]} 20... b5 {[%clk 0:02:21.5]} 21.
Ncd2 {[%clk 0:02:27.6]} 21... Be7 {[%clk 0:02:20]} 22. Nb3 {[%clk 0:02:27.4]}
22... Bf8 {[%clk 0:02:14]} 23. h5 {[%clk 0:02:22]} 23... Rd6 {[%clk 0:02:06.6]}
24. hxg6 {[%clk 0:02:19]} 24... fxg6 {[%clk 0:02:06.8]} 25. Bh3 {[%clk
0:02:19.4]} 25... Rxd1+ {[%clk 0:01:59.5]} 26. Rxd1 {[%clk 0:02:19.2]} 26... Nf6
{[%clk 0:02:00.9]} 27. Bxc8 {[%clk 0:02:14.7]} 27... Rxc8 {[%clk 0:02:02]} 28.
Kg2 {[%clk 0:02:10.6]} 28... Ng4 {[%clk 0:01:55.8]} 29. Qe2 {[%clk 0:02:07.9]}
29... Re8 {[%clk 0:01:48.9]} 30. Nh4 {[%clk 0:02:04.3]} 30... Nf6 {[%clk
0:01:47.3]} 31. Qf3 {[%clk 0:02:01]} 31... Be7 {[%clk 0:01:46.2]} 32. Qe2 {[%clk
0:01:37.3]} 32... Rf8 {[%clk 0:01:44.9]} 33. Rd3 {[%clk 0:01:32.6]} 33... c5
{[%clk 0:01:44.1]} 34. Rf3 {[%clk 0:01:32]} 34... c4 {[%clk 0:01:44.7]} 35. Nd2
{[%clk 0:01:29.3]} 35... Qc6 {[%clk 0:01:44.1]} 36. Qe1 {[%clk 0:01:01.7]} 36...
Rd8 {[%clk 0:01:43.7]} 37. b3 {[%clk 0:00:56.3]} 37... Nh5 {[%clk 0:01:39.5]}
38. bxc4 {[%clk 0:00:52]} 38... bxc4 {[%clk 0:01:40]} 39. Qe2 {[%clk 0:00:34.4]}
39... Bxh4 {[%clk 0:01:40.7]} 40. gxh4 {[%clk 0:00:30.7]} 40... Nf4+ {[%clk
0:01:42.2]} 41. Rxf4 {[%clk 0:00:32.1]} 41... exf4 {[%clk 0:01:43.7]} 42. Nxc4
{[%clk 0:00:30.4]} 42... Rc8 {[%clk 0:01:40.5]} 43. Ne5 {[%clk 0:00:27.8]} 43...
Qe6 {[%clk 0:01:31.6]} 44. Qb5 {[%clk 0:00:09]} 44... Rxc3 {[%clk 0:01:25]} 45.
Qb7+ {[%clk 0:00:09]} 45... Kg8 {[%clk 0:01:26]} 46. Qb8+ {[%clk 0:00:09]} 46...
Rc8 {[%clk 0:01:26.5]} 47. Qb5 {[%clk 0:00:07.8]} 47... Re8 {[%clk 0:01:27.1]}
48. Nd3 {[%clk 0:00:06]} 48... Qxe4+ {[%clk 0:01:26.5]} 0-1